lending/lending_fUSD_20251106
["ID","MTS","AMOUNT","RATE_DAILY","PERIOD"]
[393323458,1762471843305,-500.0,0.00017996,2]
[393323459,1762471843315,-500.0,0.00017996,2]
[393323460,1762471843324,-500.0,0.00017996,2]
[393323461,1762471843333,-500.0,0.00017996,2]
[393323462,1762471843342,-500.0,0.00017996,2]
[393323463,1762471843350,-2336.0,0.00017997,2]
[393323464,1762471843359,-687372.5943076,0.00017997,2]
[393323465,1762471843368,-6274.4247261,0.00017997,2]
[393323466,1762471843377,-28102.1902923,0.00017997,2]
[393323467,1762471843386,-161.356972,0.00017997,2]
[393323468,1762471843395,-151.0,0.00017997,2]
[393323469,1762471843404,-151.0,0.00017997,2]
[393323470,1762471843413,-245.760628,0.00017997,2]
[393323471,1762471843422,-160.400673,0.00017997,2]
[393323472,1762471843431,-152.819662,0.00017997,2]
[393323473,1762471843439,-154.031683,0.00017997,2]
[393323474,1762471843448,-151.0,0.00017997,2]
[393323476,1762471843457,-151.0,0.00017997,2]
[393323478,1762471843466,-151.0,0.00017997,2]
[393323480,1762471843476,-224.66666,0.00017997,2]
[393323482,1762471843484,-151.0,0.00017997,2]
[393323484,1762471843494,-931.693754,0.00017997,2]
[393323486,1762471843502,-151.0,0.00017997,2]
[393323488,1762471843512,-151.0,0.00017997,2]
[393323490,1762471843521,-151.0,0.00017997,2]
[393323492,1762471843531,-151.0,0.00017997,2]
[393323494,1762471843541,-151.0,0.00017997,2]
[393323496,1762471843549,-151.0,0.00017997,2]
[393323498,1762471843558,-151.0,0.00017997,2]
[393323500,1762471843567,-151.0,0.00017997,2]
[393323503,1762471843576,-151.0,0.00017997,2]
[393323506,1762471843585,-270.695175,0.00017997,2]
[393323509,1762471843594,-151.0,0.00017997,2]
[393323511,1762471843603,-151.0,0.00017997,2]
[393323513,1762471843612,-151.0,0.00017997,2]
[393323515,1762471843621,-204.581712,0.00017997,2]
[393323517,1762471843631,-151.0,0.00017997,2]
[393323519,1762471843640,-157.64513,0.00017997,2]
[393323521,1762471843649,-151.0,0.00017997,2]
[393323523,1762471843658,-151.0,0.00017997,2]
[393323525,1762471843667,-151.0,0.00017997,2]
[393323527,1762471843676,-266.888997,0.00017997,2]
[393323529,1762471843685,-151.0,0.00017997,2]
[393323531,1762471843694,-151.0,0.00017997,2]
[393323533,1762471843703,-151.0,0.00017997,2]
[393323535,1762471843713,-151.0,0.00017997,2]
[393323537,1762471843722,-151.0,0.00017997,2]
[393323539,1762471843731,-151.0,0.00017997,2]
[393323541,1762471843739,-223.4335,0.00017997,2]
[393323543,1762471843748,-190.089613,0.00017997,2]
[393323545,1762471843757,-223.4335,0.00017997,2]
[393323547,1762471843766,-151.0,0.00017997,2]
[393323549,1762471843775,-151.0,0.00017997,2]
[393323551,1762471843783,-151.0,0.00017997,2]
[393323553,1762471843792,-223.4335,0.00017997,2]
[393323555,1762471843801,-223.4335,0.00017997,2]
[393323557,1762471843810,-285.445704,0.00017997,2]
[393323558,1762471843819,-151.0,0.00017997,2]
[393323561,1762471843829,-151.0,0.00017997,2]
[393323562,1762471843838,-151.0,0.00017997,2]
[393323564,1762471843847,-151.0,0.00017997,2]
[393323566,1762471843856,-151.0,0.00017997,2]
[393323568,1762471843865,-151.0,0.00017997,2]
[393323570,1762471843874,-271.929985,0.00017997,2]
[393323572,1762471843883,-296.466212,0.00017997,2]
[393323574,1762471843892,-151.0,0.00017997,2]
[393323576,1762471843902,-204.444125,0.00017997,2]
[393323578,1762471843911,-151.0,0.00017997,2]
[393323580,1762471843920,-151.0,0.00017997,2]
[393323582,1762471843930,-151.0,0.00017997,2]
[393323584,1762471843939,-151.0,0.00017997,2]
[393323586,1762471843948,-151.0,0.00017997,2]
[393323588,1762471843957,-151.0,0.00017997,2]
[393323590,1762471843966,-151.0,0.00017997,2]
[393323592,1762471843977,-151.0,0.00017997,2]
[393323594,1762471843986,-151.0,0.00017997,2]
[393323596,1762471843995,-151.0,0.00017997,2]
[393323598,1762471844005,-151.0,0.00017997,2]
[393323620,1762471844185,-151.0,0.00017997,2]
[393323622,1762471844195,-151.0,0.00017997,2]
[393323624,1762471844204,-151.0,0.00017997,2]
[393323626,1762471844213,-151.0,0.00017997,2]
[393323628,1762471844223,-151.0,0.00017997,2]
[393323630,1762471844237,-272.232652,0.00017997,2]
[393323632,1762471844247,-272.232652,0.00017997,2]
[393323634,1762471844255,-272.232652,0.00017997,2]
[393323636,1762471844266,-180.601119,0.00017997,2]
[393323638,1762471844275,-272.232652,0.00017997,2]
[393323640,1762471844286,-180.601119,0.00017997,2]
[393323642,1762471844295,-180.601119,0.00017997,2]
[393323644,1762471844308,-180.601119,0.00017997,2]
[393323646,1762471844317,-151.0,0.00017997,2]
[393323648,1762471844326,-151.0,0.00017997,2]
[393323650,1762471844335,-255.432216,0.00017997,2]
[393323652,1762471844344,-151.0,0.00017997,2]
[393323654,1762471844353,-151.0,0.00017997,2]
[393323655,1762471844362,-1017.561155,0.00017997,2]
[393323656,1762471844371,-151.0,0.00017997,2]
[393323657,1762471844380,-1017.561155,0.00017997,2]
[393323658,1762471844390,-151.0,0.00017997,2]
[393323659,1762471844399,-151.0,0.00017997,2]
[393323660,1762471844408,-1017.561155,0.00017997,2]
[393323661,1762471844418,-151.0,0.00017997,2]
[393323662,1762471844427,-1017.561155,0.00017997,2]
[393323663,1762471844436,-182.713429,0.00017997,2]
[393323664,1762471844445,-151.0,0.00017997,2]
[393323665,1762471844455,-151.0,0.00017997,2]
[393323666,1762471844464,-679.196832,0.00017997,2]
[393323668,1762471844474,-151.0,0.00017997,2]
[393323669,1762471844484,-679.196832,0.00017997,2]
[393323670,1762471844493,-151.0,0.00017997,2]
[393323671,1762471844503,-679.196832,0.00017997,2]
[393323672,1762471844512,-151.0,0.00017997,2]
[393323673,1762471844521,-151.0,0.00017997,2]
[393323674,1762471844530,-151.0,0.00017997,2]
[393323675,1762471844539,-679.196832,0.00017997,2]
[393323676,1762471844548,-151.0,0.00017997,2]
[393323677,1762471844556,-151.0,0.00017997,2]
[393323678,1762471844565,-151.0,0.00017997,2]
[393323679,1762471844574,-151.0,0.00017997,2]
[393323680,1762471844584,-151.0,0.00017997,2]
[393323681,1762471844593,-151.0,0.00017997,2]
[393323682,1762471844601,-151.0,0.00017997,2]
[393323683,1762471844611,-151.0,0.00017997,2]
[393323684,1762471844620,-151.0,0.00017997,2]
[393323685,1762471844629,-151.0,0.00017997,2]
[393323686,1762471844638,-151.0,0.00017997,2]
[393323687,1762471844647,-151.0,0.00017997,2]
[393323688,1762471844656,-174.028072,0.00017997,2]
[393323689,1762471844665,-151.0,0.00017997,2]
[393323690,1762471844674,-151.0,0.00017997,2]
[393323691,1762471844683,-197.963941,0.00017997,2]
[393323692,1762471844692,-151.0,0.00017997,2]
[393323693,1762471844701,-151.0,0.00017997,2]
[393323694,1762471844711,-151.0,0.00017997,2]
[393323695,1762471844721,-151.0,0.00017997,2]
[393323696,1762471844730,-151.0,0.00017997,2]
[393323697,1762471844739,-151.0,0.00017997,2]
[393323698,1762471844749,-151.0,0.00017997,2]
[393323699,1762471844758,-152.087495,0.00017997,2]
[393323700,1762471844767,-151.0,0.00017997,2]
[393323701,1762471844777,-151.0,0.00017997,2]
[393323702,1762471844787,-2713.142707,0.00017997,2]
[393323703,1762471844796,-151.0,0.00017997,2]
[393323704,1762471844806,-151.0,0.00017997,2]
[393323705,1762471844815,-151.0,0.00017997,2]
[393323706,1762471844824,-151.0,0.00017997,2]
[393323707,1762471844833,-2713.142707,0.00017997,2]
[393323708,1762471844843,-151.0,0.00017997,2]
[393323709,1762471844852,-151.0,0.00017997,2]
[393323710,1762471844862,-151.0,0.00017997,2]
[393323711,1762471844871,-2713.142707,0.00017997,2]
[393323712,1762471844880,-151.0,0.00017997,2]
[393323713,1762471844890,-2713.142707,0.00017997,2]
[393323714,1762471844899,-162.098576,0.00017997,2]
[393323715,1762471844908,-151.0,0.00017997,2]
[393323716,1762471844917,-151.0,0.00017997,2]
[393323717,1762471844927,-284.883041,0.00017997,2]
[393323718,1762471844936,-151.0,0.00017997,2]
[393323719,1762471844946,-151.0,0.00017997,2]
[393323720,1762471844955,-284.883041,0.00017997,2]
[393323721,1762471844964,-284.883041,0.00017997,2]
[393323722,1762471844973,-151.0,0.00017997,2]
[393323723,1762471844982,-284.883041,0.00017997,2]
[393323724,1762471844991,-151.0,0.00017997,2]
[393323725,1762471845000,-151.0,0.00017997,2]
[393323726,1762471845009,-151.0,0.00017997,2]
[393323727,1762471845019,-151.0,0.00017997,2]
[393323728,1762471845028,-151.0,0.00017997,2]
[393323729,1762471845038,-151.0,0.00017997,2]
[393323730,1762471845047,-151.0,0.00017997,2]
[393323731,1762471845056,-151.0,0.00017997,2]
[393323732,1762471845066,-161.065636,0.00017997,2]
[393323733,1762471845075,-161.065636,0.00017997,2]
[393323734,1762471845084,-161.065636,0.00017997,2]
[393323735,1762471845093,-151.0,0.00017997,2]
[393323736,1762471845102,-197.161209,0.00017997,2]
[393323737,1762471845111,-161.065636,0.00017997,2]
[393323738,1762471845120,-151.0,0.00017997,2]
[393323739,1762471845129,-444.934857,0.00017997,2]
[393323740,1762471845138,-444.934857,0.00017997,2]
[393323741,1762471845147,-444.934857,0.00017997,2]
[393323742,1762471845156,-444.934857,0.00017997,2]
[393323743,1762471845165,-151.0,0.00017997,2]
[393323744,1762471845174,-357.809337,0.00017997,2]
[393323745,1762471845183,-2873.642831,0.00017997,2]
[393323746,1762471845193,-357.809337,0.00017997,2]
[393323747,1762471845202,-2873.642831,0.00017997,2]
[393323748,1762471845211,-357.809337,0.00017997,2]
[393323749,1762471845222,-2873.642831,0.00017997,2]
[393323750,1762471845235,-357.809337,0.00017997,2]
[393323751,1762471845244,-2873.642831,0.00017997,2]
[393323752,1762471845253,-151.0,0.00017997,2]
[393323753,1762471845263,-151.0,0.00017997,2]
[393323754,1762471845273,-151.0,0.00017997,2]
[393323755,1762471845283,-151.0,0.00017997,2]
[393323756,1762471845293,-155.0,0.00017999,2]
[393323757,1762471845304,-2500.0,0.00017999,3]
[393323758,1762471845314,-477.87911524,0.00017999,3]
[393323759,1762471845323,-10977.46033764,0.00017999,2]
[393323760,1762471845333,-500.0,0.00017999,2]
[393323761,1762471845342,-500.0,0.00017999,2]
[393323762,1762471845351,-500.0,0.00017999,2]
[393323763,1762471845360,-500.0,0.00017999,2]
[393323764,1762471845370,-500.0,0.00017999,2]
[393323765,1762471845379,-500.0,0.00017999,2]
[393323766,1762471845388,-500.0,0.00017999,2]
[393323767,1762471845398,-500.0,0.00017999,2]
[393323768,1762471845407,-500.0,0.00017999,2]
[393323769,1762471845416,-151.0,0.00017999,2]
[393323770,1762471845426,-151.0,0.00017999,2]
[393323771,1762471845435,-162.607049,0.00017999,2]
[393323772,1762471845444,-151.0,0.00017999,2]
[393323773,1762471845454,-151.0,0.00017999,2]
[393323774,1762471845464,-151.0,0.00017999,2]
[393323775,1762471845483,-151.0,0.00017999,2]
[393323776,1762471845502,-151.0,0.00017999,2]
[393323777,1762471845511,-151.0,0.00017999,2]
[393323778,1762471845521,-151.0,0.00017999,2]
[393323779,1762471845530,-151.0,0.00017999,2]
[393323780,1762471845540,-202.376214,0.00017999,2]
[393323781,1762471845549,-151.0,0.00017999,2]
[393323782,1762471845559,-151.0,0.00017999,2]
[393323783,1762471845568,-151.0,0.00017999,2]
[393323784,1762471845577,-151.0,0.00017999,2]
[393323785,1762471845587,-151.0,0.00017999,2]
[393323786,1762471845596,-151.0,0.00017999,2]
[393323787,1762471845605,-151.0,0.00017999,2]
[393323788,1762471845615,-151.0,0.00017999,2]
[393323789,1762471845624,-223.4335,0.00017999,2]
[393323790,1762471845633,-223.4335,0.00017999,2]
[393323791,1762471845643,-156.237157,0.00017999,2]
[393323792,1762471845652,-151.0,0.00017999,2]
[393323793,1762471845662,-199.703718,0.00017999,2]
[393323794,1762471845672,-223.4335,0.00017999,2]
[393323795,1762471845682,-223.4335,0.00017999,2]
[393323796,1762471845691,-151.0,0.00017999,2]
[393323797,1762471845700,-151.523274,0.00017999,2]
[393323798,1762471845710,-155.773991,0.00017999,2]
[393323799,1762471845719,-151.0,0.00017999,2]
[393323800,1762471845728,-151.0,0.00017999,2]
[393323801,1762471845737,-151.0,0.00017999,2]
[393323802,1762471845747,-151.0,0.00017999,2]
[393323803,1762471845756,-151.0,0.00017999,2]
[393323804,1762471845765,-151.0,0.00017999,2]
[393323805,1762471845774,-151.0,0.00017999,2]
[393323806,1762471845784,-151.0,0.00017999,2]
[393323807,1762471845793,-151.0,0.00017999,2]
[393323808,1762471845803,-151.0,0.00017999,2]
[393323809,1762471845812,-151.0,0.00017999,2]
[393323810,1762471845823,-151.0,0.00017999,2]
[393323811,1762471845832,-208.160694,0.00017999,2]
[393323812,1762471845841,-151.0,0.00017999,2]
[393323813,1762471845850,-151.0,0.00017999,2]
[393323814,1762471845860,-151.0,0.00017999,2]
[393323815,1762471845869,-151.0,0.00017999,2]
[393323816,1762471845879,-151.0,0.00017999,2]
[393323817,1762471845888,-151.0,0.00017999,2]
[393323818,1762471845898,-272.232652,0.00017999,2]
[393323819,1762471845908,-272.232652,0.00017999,2]
[393323820,1762471845918,-272.232652,0.00017999,2]
[393323821,1762471845928,-180.601119,0.00017999,2]
[393323822,1762471845938,-272.232652,0.00017999,2]
[393323823,1762471845947,-180.601119,0.00017999,2]
[393323824,1762471845957,-180.601119,0.00017999,2]
[393323825,1762471845968,-619.05,0.00017999,2]
[393323826,1762471845978,-180.601119,0.00017999,2]
[393323827,1762471845987,-151.0,0.00017999,2]
[393323828,1762471845996,-15400.16589434,0.00017999,2]
[393323829,1762471846006,-151.0,0.00017999,2]
[393323830,1762471846016,-151.0,0.00017999,2]
[393323831,1762471846026,-151.0,0.00017999,2]
[393323832,1762471846036,-1017.561155,0.00017999,2]
[393323833,1762471846046,-151.0,0.00017999,2]
[393323835,1762471846055,-1017.561155,0.00017999,2]
[393323836,1762471846065,-151.0,0.00017999,2]
[393323837,1762471846075,-151.0,0.00017999,2]
[393323838,1762471846084,-2500.0,0.00017999,3]
[393323839,1762471846093,-1017.561155,0.00017999,2]
[393323840,1762471846103,-151.0,0.00017999,2]
[393323841,1762471846113,-1017.561155,0.00017999,2]
[393323842,1762471846122,-151.0,0.00017999,2]
[393323843,1762471846131,-151.0,0.00017999,2]
[393323844,1762471846141,-679.196832,0.00017999,2]
[393323845,1762471846150,-195.12157,0.00017999,2]
[393323846,1762471846160,-679.196832,0.00017999,2]
[393323847,1762471846169,-151.0,0.00017999,2]
[393323848,1762471846179,-679.196832,0.00017999,2]
[393323849,1762471846187,-151.0,0.00017999,2]
[393323850,1762471846196,-151.0,0.00017999,2]
[393323851,1762471846205,-679.196832,0.00017999,2]
[393323852,1762471846214,-151.0,0.00017999,2]
[393323853,1762471846226,-151.0,0.00017999,2]
[393323854,1762471846237,-151.0,0.00017999,2]
[393323855,1762471846246,-151.0,0.00017999,2]
[393323856,1762471846256,-151.0,0.00017999,2]
[393323857,1762471846268,-151.0,0.00017999,2]
[393323858,1762471846277,-151.0,0.00017999,2]
[393323859,1762471846287,-151.0,0.00017999,2]
[393323860,1762471846297,-286.111584,0.00017999,2]
[393323861,1762471846308,-151.0,0.00017999,2]
[393323862,1762471846317,-151.0,0.00017999,2]
[393323863,1762471846328,-151.0,0.00017999,2]
[393323864,1762471846337,-628.14,0.00017999,2]
[393323865,1762471846346,-151.0,0.00017999,2]
[393323866,1762471846355,-151.0,0.00017999,2]
[393323867,1762471846367,-151.0,0.00017999,2]
[393323868,1762471846376,-151.0,0.00017999,2]
[393323869,1762471846386,-151.0,0.00017999,2]
[393323870,1762471846395,-151.0,0.00017999,2]
[393323871,1762471846404,-219.781758,0.00017999,2]
[393323872,1762471846414,-151.0,0.00017999,2]
[393323873,1762471846423,-2713.142707,0.00017999,2]
[393323874,1762471846432,-151.0,0.00017999,2]
[393323875,1762471846441,-151.0,0.00017999,2]
[393323876,1762471846451,-2713.142707,0.00017999,2]
[393323877,1762471846460,-151.0,0.00017999,2]
[393323878,1762471846469,-151.0,0.00017999,2]
[393323879,1762471846478,-151.0,0.00017999,2]
[393323880,1762471846487,-2713.142707,0.00017999,2]
[393323881,1762471846497,-2713.142707,0.00017999,2]
[393323882,1762471846506,-151.0,0.00017999,2]
[393323883,1762471846516,-5800.0,0.00017999,2]
[393323884,1762471846568,-151.0,0.00017999,2]
[393323885,1762471846577,-284.883041,0.00017999,2]
[393323886,1762471846586,-199.007709,0.00017999,2]
[393323887,1762471846595,-284.883041,0.00017999,2]
[393323888,1762471846604,-284.883041,0.00017999,2]
[393323889,1762471846613,-151.0,0.00017999,2]
[393323890,1762471846622,-284.883041,0.00017999,2]
[393323891,1762471846632,-151.0,0.00017999,2]
[393323892,1762471846641,-151.0,0.00017999,2]
[393323893,1762471846649,-151.0,0.00017999,2]
[393323894,1762471846658,-151.0,0.00017999,2]
[393323895,1762471846667,-266.930809,0.00017999,2]
[393323896,1762471846677,-151.0,0.00017999,2]
[393323897,1762471846686,-152.369643,0.00017999,2]
[393323898,1762471846695,-151.0,0.00017999,2]
[393323899,1762471846703,-500.0,0.00017999,2]
[393323900,1762471846712,-500.0,0.00017999,2]
[393323901,1762471846721,-500.0,0.00017999,2]
[393323902,1762471846730,-500.0,0.00017999,2]
[393323903,1762471846739,-500.0,0.00017999,2]
[393323904,1762471846748,-179.54679155,0.00017999,2]
[393323905,1762471846756,-161.065636,0.00017999,2]
[393323906,1762471846765,-161.065636,0.00017999,2]
[393323907,1762471846774,-161.065636,0.00017999,2]
[393323908,1762471846783,-151.0,0.00017999,2]
[393323909,1762471846792,-161.065636,0.00017999,2]
[393323910,1762471846801,-444.934857,0.00017999,2]
[393323911,1762471846810,-444.934857,0.00017999,2]
[393323912,1762471846819,-444.934857,0.00017999,2]
[393323913,1762471846828,-444.934857,0.00017999,2]
[393323914,1762471846837,-151.0,0.00017999,2]
[393323915,1762471846846,-357.809337,0.00017999,2]
[393323916,1762471846855,-2873.642831,0.00017999,2]
[393323917,1762471846864,-357.809337,0.00017999,2]
[393323918,1762471846873,-2873.642831,0.00017999,2]
[393323919,1762471846882,-357.809337,0.00017999,2]
[393323920,1762471846891,-2873.642831,0.00017999,2]
[393323921,1762471846900,-357.809337,0.00017999,2]
[393323922,1762471846909,-2873.642831,0.00017999,2]
[393323923,1762471846918,-151.0,0.00017999,2]
[393323924,1762471846927,-151.0,0.00017999,2]
[393323925,1762471846936,-151.0,0.00017999,2]
[393323926,1762471846945,-902214.95579431,0.00018,2]
[393323933,1762471847115,-748886.43245991,0.00018,2]
[393323934,1762471847124,-407893.540874,0.00018,2]
[393323935,1762471847307,-121.88103017,0.0001799,2]
[393323936,1762471847482,-706.82447489,0.00017957,2]
[393323937,1762471847497,-347.5071889,0.00017957,2]
[393323938,1762471847507,-450.26500082,0.00017957,2]
[393323939,1762471847521,-598.44994,0.00017957,2]
[393323940,1762471847536,-4554.95339539,0.00017957,2]
[393323941,1762471847546,-29.11896983,0.0001799,2]
[393323942,1762471847555,-806.577705,0.0001799,2]
[393323943,1762471847564,-806.577705,0.0001799,2]
[393323944,1762471847573,-806.577705,0.0001799,2]
[393323945,1762471847582,-806.577705,0.00017997,2]
[393323946,1762471847591,-151.0,0.00017997,2]
[393323947,1762471847600,-806.577705,0.00017997,2]
[393323948,1762471847610,-806.577705,0.00017997,2]
[393323949,1762471847619,-806.577705,0.00017997,2]
[393323950,1762471847628,-494.82813323,0.00017999,2]
[393323951,1762471847805,-4200.01,0.00017973,2]
[393323952,1762471848004,-1599.99,0.00017973,2]
[393323953,1762471848034,-311.74957177,0.00017999,2]
[393323954,1762471848061,-151.0,0.00017999,2]
[393323955,1762471848090,-806.577705,0.00017999,2]
[393323956,1762471848118,-806.577705,0.00017999,2]
[393323957,1762471848146,-806.577705,0.00017999,2]
[393323958,1762471851022,-7724.20958046,0.00018,2]
[393323959,1762471853647,-10000.01,0.00018,2]
[393323960,1762471853808,-10000.01,0.00018,2]
[393323961,1762471853921,-10000.01,0.00018,2]
[393323962,1762471854190,-10000.01,0.00018,2]
[393323963,1762471868195,29832.007443,7.945e-05,2]
[393323967,1762471901058,170.0,1.06e-06,2]
[393323972,1762471978369,-375.64157914,0.000169,2]
[393323973,1762471978396,-171.07018412,0.00017165,2]
[393323974,1762471978423,-257.33364253,0.00017265,2]
[393323975,1762471978450,-195.0,0.00017365,2]
[393323976,1762471978478,-300.0,0.00017572,2]
[393323977,1762471978506,-166.94179394,0.00017729,2]
[393323978,1762471978533,-3407.971057,0.00017741,2]
[393323979,1762471978708,-85.1516926,0.00017773,2]
[393323980,1762471978738,-414.8483074,0.00017773,2]
[393323981,1762471978948,-278.99843192,0.00017799,2]
[393323982,1762471978978,-500.0,0.00017799,2]
[393323983,1762471979011,-233.7774497,0.00017799,2]
[393323984,1762471979044,-245.08748687,0.00017799,2]
[393323985,1762471979078,-500.0,0.00017799,2]
[393323986,1762471979106,-216.68938768,0.00017799,2]
[393323987,1762471979134,-173.18401907,0.00017799,2]
[393323988,1762471979167,-500.0,0.00017799,2]
[393323989,1762471979199,-500.0,0.00017799,2]
[393323990,1762471979231,-500.0,0.00017799,2]
[393323991,1762471979263,-500.0,0.00017799,2]
[393323992,1762471979298,-374.83983472,0.00017799,2]
[393323993,1762471979338,-125.16016528,0.00017799,2]
[393323994,1762471979366,-379.82786191,0.00017799,2]
[393323995,1762471979396,-500.0,0.00017799,2]
[393323996,1762471979428,-500.0,0.00017799,2]
[393323997,1762471979459,-500.0,0.00017799,2]
[393323998,1762471979491,-500.0,0.00017799,2]
[393323999,1762471979524,-500.0,0.00017799,2]
[393324000,1762471979556,-500.0,0.00017799,2]
[393324001,1762471979588,-500.0,0.00017799,2]
[393324002,1762471979619,-500.0,0.00017799,2]
[393324003,1762471979652,-490.03394562,0.00017799,2]
[393324004,1762471980023,-9.96605438,0.00017799,2]
[393324005,1762471980033,-125.16016528,0.00017799,2]
[393324006,1762471981219,-374.83983472,0.00017799,2]
[393324007,1762471981254,-500.0,0.00017799,2]
[393324008,1762471981291,-525.87189833,0.00017799,2]
[393324009,1762471981377,-300.0,0.00017798,2]
[393324010,1762471981411,-6898.5865339,0.000178,2]
[393324011,1762471981428,-300.0,0.000178,2]
[393324012,1762471981446,-9400.01,0.000178,2]
[393324013,1762471987237,-214.81796887,0.00017773,2]
[393324014,1762471987265,-426.17665821,0.00017773,2]
[393324015,1762471987300,-500.0,0.00017773,2]
[393324016,1762471987330,-550.0,0.00017798,2]
[393324017,1762471987358,-300.0,0.00017799,2]
[393324018,1762471987455,-6018.02074584,0.000178,2]
[393324019,1762471987469,-10000.01,0.000178,2]
[393324040,1762472263624,585.5,0.00030137,120]
[393324055,1762472510192,7824.19210203,0.0003,120]
[393324057,1762472564758,150.0,0.00016699,120]
[393324060,1762472713314,5050.0,0.00038723,37]
[393324062,1762472917578,161.76,0.00024768,120]
[393324074,1762473032155,-160.26958582,0.00016358,2]
[393324075,1762473032164,-294.6298134,0.00016397,2]
[393324076,1762473032174,-195.0,0.00016397,2]
[393324077,1762473032183,-160.0,0.00016436,2]
[393324078,1762473032192,-158.50682571,0.00016437,2]
[393324079,1762473032202,-575.2942253,0.00016437,2]
[393324080,1762473032211,-1796.75,0.00016438,2]
[393324081,1762473032220,-158.50682571,0.00016438,2]
[393324082,1762473032230,-161.76,0.00016512,2]
[393324083,1762473032240,-175.78,0.00016663,2]
[393324084,1762473032249,-150.0,0.00016699,2]
[393324085,1762473032260,-300.0,0.0001675,2]
[393324086,1762473032269,-300.0,0.0001675,2]
[393324087,1762473032279,-168.34232436,0.0001675,2]
[393324088,1762473032298,-1031.65767564,0.0001675,2]
[393324089,1762473032307,-300.0,0.0001675,2]
[393324090,1762473032317,-158.50682571,0.00016751,2]
[393324091,1762473032326,-1017.60320165,0.00016751,2]
[393324092,1762473032338,-182.39679835,0.00016751,2]
[393324093,1762473032347,-67.60320165,0.00016751,2]
[393324094,1762473032365,-482.39679835,0.00016751,2]
[393324095,1762473032374,-243.0,0.00016751,2]
[393324096,1762473032383,-151.0,0.00016752,2]
[393324097,1762473032393,-151.0,0.00016752,2]
[393324098,1762473032402,-257.30982705,0.00016752,2]
[393324099,1762473032411,-151.0,0.00016752,2]
[393324100,1762473032423,-151.0,0.00016752,2]
[393324101,1762473032433,-151.0,0.00016752,2]
[393324102,1762473032442,-151.0,0.00016752,2]
[393324103,1762473032451,-151.0,0.00016752,2]
[393324104,1762473032461,-151.0,0.00016752,2]
[393324105,1762473032470,-151.0,0.00016752,2]
[393324106,1762473032479,-151.0,0.00016752,2]
[393324107,1762473032488,-151.0,0.00016752,2]
[393324108,1762473032498,-151.0,0.00016752,2]
[393324109,1762473032508,-151.0,0.00016752,2]
[393324110,1762473032518,-151.0,0.00016752,2]
[393324111,1762473032527,-151.0,0.00016752,2]
[393324113,1762473032536,-151.0,0.00016752,2]
[393324115,1762473032546,-151.0,0.00016752,2]
[393324117,1762473032558,-151.0,0.00016752,2]
[393324119,1762473032567,-248.34894286,0.00016752,2]
[393324121,1762473032577,-500.0,0.00016762,2]
[393324123,1762473032587,-154.53997904,0.00016762,2]
[393324125,1762473032596,-500.0,0.00016762,2]
[393324127,1762473032606,-257.53786932,0.00016762,2]
[393324129,1762473032615,-500.0,0.00016762,2]
[393324130,1762473032625,-452.58718983,0.00016762,2]
[393324131,1762473032635,-500.0,0.00016762,2]